bitfinex-derivatives/quotes_BTCF0:USTF0_20250130
["timestamp","ask_amount","ask_price","bid_price","bid_amount"]
[1738279564956,0.75825788,105230.0,105220.0,0.3195021]
[1738279569758,0.8267294,105230.0,105220.0,0.22073058]
[1738279572454,0.8267294,105230.0,105220.0,0.2892021]
[1738279580265,0.8267294,105230.0,105220.0,0.0991341]
[1738279581967,0.8267294,105230.0,105220.0,0.0736141]
[1738279582163,0.70515092,105230.0,105200.0,0.37330453]
[1738279582466,0.550886,105210.0,105200.0,0.40997605]
[1738279582766,0.550886,105210.0,105200.0,0.62560005]
[1738279583468,0.550886,105210.0,105200.0,0.43549605]
[1738279583967,0.550886,105210.0,105200.0,0.70367223]
[1738279584167,0.3608,105210.0,105200.0,0.96224775]
[1738279584759,0.3608,105210.0,105200.0,0.96624775]
[1738279587872,0.56007964,105210.0,105200.0,0.35656704]
[1738279589070,0.19927964,105210.0,105200.0,0.71736704]
[1738279589264,0.19927964,105210.0,105200.0,0.78176704]
[1738279590760,0.38949022,105220.0,105200.0,0.87641323]
[1738279591063,0.38949022,105220.0,105210.0,0.65035752]
[1738279591571,0.38949022,105220.0,105210.0,0.67587752]
[1738279591769,0.38949022,105220.0,105210.0,0.65035752]
[1738279592069,0.38949022,105220.0,105210.0,0.67587752]
[1738279592269,0.19942222,105220.0,105210.0,0.67587752]
[1738279592475,0.20042222,105220.0,105210.0,0.68187752]
[1738279593573,0.20042222,105220.0,105210.0,0.75034904]
[1738279594267,0.08654814,105220.0,105210.0,0.75034904]
[1738279594966,0.08654814,105220.0,105210.0,0.75234904]
[1738279597571,0.11387408,105230.0,105220.0,0.190068]
[1738279597874,0.11387408,105230.0,105220.0,0.81728256]
[1738279598975,0.11387408,105240.0,105230.0,0.19005]
[1738279599171,0.11387408,105240.0,105230.0,0.74497304]
[1738279600875,0.11387408,105240.0,105230.0,0.67750152]
[1738279602364,0.11387408,105240.0,105230.0,0.74597304]
[1738279603371,0.254214,105250.0,105230.0,0.55592304]
[1738279603675,0.254214,105250.0,105240.0,0.32697504]
[1738279603875,0.0642,105250.0,105240.0,0.32697504]
[1738279604477,0.0672,105250.0,105240.0,0.32697504]
[1738279604878,0.257213,105250.0,105240.0,0.32697504]
[1738279605079,0.258213,105250.0,105240.0,0.35245504]
[1738279606468,0.257213,105250.0,105240.0,0.35245504]
[1738279606763,0.258213,105250.0,105240.0,0.35245504]
[1738279607578,0.0682,105250.0,105240.0,0.35245504]
[1738279622384,0.0682,105250.0,105240.0,0.71325504]
[1738279628992,0.035,105250.0,105240.0,0.71325504]
[1738279630075,0.065,105250.0,105240.0,0.71325504]
[1738279639694,0.255014,105250.0,105240.0,0.35245504]
[1738279644210,0.255014,105250.0,105240.0,0.71325504]
[1738279644412,0.065,105250.0,105240.0,0.71325504]
[1738279644614,0.17887408,105250.0,105240.0,0.71325504]
[1738279647410,0.065,105250.0,105240.0,0.71325504]
[1738279649117,0.004,105250.0,105240.0,0.78172656]
[1738279649420,0.004,105250.0,105240.0,0.84522656]
[1738279651016,0.11387408,105260.0,105240.0,0.62971456]
[1738279651220,0.14200788,105270.0,105260.0,0.189996]
[1738279651424,0.14200788,105270.0,105260.0,0.78165056]
[1738279653126,0.14400788,105270.0,105260.0,0.71317904]
[1738279654928,0.14900788,105270.0,105260.0,0.71317904]
[1738279655723,0.007,105270.0,105260.0,0.71317904]
[1738279656829,0.007,105270.0,105260.0,0.25846752]
[1738279657133,0.0728,105270.0,105260.0,0.71317904]
[1738279658329,0.0728,105270.0,105260.0,0.72293043]
[1738279661032,0.0728,105270.0,105260.0,0.36213043]
[1738279661334,0.0728,105270.0,105260.0,0.72293043]
[1738279662437,0.0728,105270.0,105260.0,0.69749043]
[1738279662626,0.0728,105270.0,105260.0,0.72293043]
[1738279663035,0.0728,105270.0,105260.0,0.69749043]
[1738279663237,0.0728,105270.0,105260.0,0.72293043]
[1738279676142,0.0728,105270.0,105260.0,0.69749043]
[1738279676347,0.0728,105270.0,105260.0,0.72293043]
[1738279680449,0.0728,105270.0,105260.0,0.69749043]
[1738279680651,0.0728,105270.0,105260.0,0.72293043]
[1738279682653,0.0728,105270.0,105260.0,1.00712521]
[1738279702071,0.0728,105270.0,105260.0,0.93865369]
[1738279708584,0.0728,105270.0,105260.0,0.65445891]
[1738279715083,0.0728,105270.0,105260.0,0.72293043]
[1738279716484,0.18671905,105270.0,105260.0,1.00792138]
[1738279719891,0.15823885,105270.0,105260.0,1.00792138]
[1738279723781,0.15823885,105270.0,105260.0,1.34942591]
[1738279724381,0.15723885,105270.0,105260.0,1.34942591]
[1738279724689,0.15423885,105270.0,105260.0,1.34942591]
[1738279727794,0.15423885,105270.0,105260.0,0.72293043]
[1738279732497,0.77348737,105270.0,105260.0,0.19974739]
[1738279732697,0.189996,105260.0,105250.0,0.34164711]
[1738279732999,0.189996,105260.0,105250.0,0.36704711]
[1738279733000,0.71853904,105260.0,105250.0,0.36704711]
[1738279734200,0.71853904,105260.0,105250.0,0.36804711]
[1738279734594,0.71853904,105260.0,105250.0,0.31141442]
[1738279734990,0.65006752,105260.0,105250.0,0.31141442]
[1738279739610,0.84858888,105260.0,105250.0,0.02654258]
[1738279741808,0.84858888,105260.0,105250.0,0.00114258]
[1738279742010,0.84858888,105260.0,105250.0,0.02654258]
[1738279743406,0.84858888,105260.0,105250.0,0.00114258]
[1738279743700,0.7351481,105260.0,105250.0,0.02654258]
[1738279752813,0.80361962,105260.0,105250.0,0.02654258]
[1738279756018,0.80361962,105260.0,105250.0,0.00114258]
[1738279756216,0.80361962,105260.0,105250.0,0.02654258]
[1738279759326,0.9170604,105260.0,105250.0,0.00114258]
[1738279759519,0.9170604,105260.0,105250.0,0.02654258]
[1738279762325,0.83197982,105260.0,105250.0,0.02654258]
[1738279765321,1.03103411,105260.0,105250.0,0.02654258]
[1738279765534,1.03103411,105260.0,105250.0,0.00114258]
[1738279765728,0.190014,105250.0,105240.0,0.28487184]
[1738279765928,0.68048552,105250.0,105240.0,0.31027184]
[1738279766329,0.68048552,105250.0,105240.0,0.28487184]
[1738279766635,0.190032,105240.0,105230.0,0.36690453]
[1738279766829,0.71847504,105240.0,105230.0,0.36704711]
[1738279767933,0.71947504,105240.0,105230.0,0.37304711]
[1738279768327,0.71947504,105240.0,105230.0,0.37504711]
[1738279768528,0.71947504,105240.0,105230.0,0.34964711]
[1738279768835,0.71947504,105240.0,105230.0,0.37504711]
[1738279770036,1.03197011,105240.0,105230.0,0.03354258]
[1738279771929,1.04151063,105240.0,105230.0,0.03354258]
[1738279773529,1.04151063,105240.0,105230.0,0.00814258]
[1738279777740,0.87102344,105240.0,105230.0,0.00814258]
[1738279796369,1.04151063,105240.0,105230.0,0.00814258]
[1738279799457,0.89950275,105240.0,105230.0,0.00814258]
[1738279800564,0.83103123,105240.0,105230.0,0.19819258]
[1738279801171,0.83103123,105240.0,105230.0,0.22355258]
[1738279801666,0.83103123,105240.0,105230.0,0.19819258]
[1738279801869,0.86880275,105240.0,105230.0,0.00814258]
[1738279802368,0.86880275,105240.0,105220.0,0.02536]
[1738279802369,0.74724227,105240.0,105220.0,0.02536]
[1738279802675,0.190068,105220.0,105210.0,0.05686]
[1738279802864,0.68781104,105220.0,105210.0,0.0315]
[1738279803060,0.190086,105210.0,105200.0,0.06322577]
[1738279803270,0.61935752,105210.0,105200.0,0.06322577]
[1738279803475,0.61935752,105210.0,105200.0,0.08858577]
[1738279804573,0.68782904,105210.0,105200.0,0.00142577]
[1738279804780,0.68782904,105210.0,105200.0,0.02678577]
[1738279804781,0.74852904,105210.0,105200.0,0.02678577]
[1738279805662,0.68005752,105210.0,105200.0,0.02678577]
[1738279806471,0.74852904,105210.0,105200.0,0.02678577]
[1738279806677,0.78072904,105210.0,105200.0,0.02678577]
[1738279806867,0.79040239,105210.0,105200.0,0.02678577]
[1738279807068,0.79040239,105210.0,105200.0,0.00142577]
[1738279807268,0.72193087,105210.0,105200.0,0.02678577]
[1738279807473,0.68005752,105210.0,105200.0,0.21688977]
[1738279807673,0.550886,105210.0,105200.0,0.28536129]
[1738279807969,0.61935752,105210.0,105200.0,0.34916129]
[1738279808174,0.76137087,105210.0,105200.0,0.34916129]
[1738279808970,0.76137087,105210.0,105200.0,0.28068977]
[1738279809278,0.76137087,105210.0,105200.0,0.25532977]
[1738279809473,0.76137087,105210.0,105200.0,0.28068977]
[1738279811383,0.70452056,105210.0,105200.0,0.28068977]
[1738279812284,0.70452056,105210.0,105200.0,0.21688977]
[1738279812470,0.83549208,105210.0,105200.0,0.02678577]
[1738279812779,0.86579208,105210.0,105200.0,0.02536]
[1738279813083,0.190104,105200.0,105190.0,0.03303466]
[1738279813270,0.68784704,105200.0,105190.0,0.05839466]
[1738279814267,0.68784704,105200.0,105190.0,0.05939466]
[1738279814476,0.68784704,105200.0,105190.0,0.06239466]
[1738279814777,0.68784704,105200.0,105190.0,0.02959466]
[1738279816068,0.77301008,105200.0,105190.0,0.02959466]
[1738279816575,0.77301008,105200.0,105190.0,0.00423466]
[1738279816781,0.8414816,105200.0,105190.0,0.00414258]
[1738279817170,0.8668416,105200.0,105190.0,0.00414258]
[1738279817375,0.25862952,105170.0,105160.0,0.42826453]
[1738279817675,0.61942952,105170.0,105160.0,0.42826453]
[1738279818080,0.61942952,105170.0,105160.0,0.39726453]
[1738279818577,0.61942952,105170.0,105160.0,0.36686453]
[1738279818780,0.64992952,105170.0,105160.0,0.36686453]
[1738279819076,0.19028658,105180.0,105160.0,0.69698357]
[1738279819279,0.00014258,105180.0,105170.0,0.25862952]
[1738279819477,0.49788562,105180.0,105160.0,0.003]
[1738279819672,0.61942952,105170.0,105160.0,0.004]
[1738279819878,0.74940104,105170.0,105160.0,0.004]
[1738279820283,0.68092952,105170.0,105160.0,0.004]
[1738279820476,0.68092952,105170.0,105160.0,0.003]
[1738279820669,0.68092952,105170.0,105150.0,0.28559428]
[1738279820875,0.06847152,105160.0,105150.0,0.28559428]
[1738279821676,0.68092952,105170.0,105150.0,0.28559428]
[1738279821875,0.68192952,105170.0,105150.0,0.28559428]
[1738279822275,0.613458,105170.0,105160.0,0.001]
[1738279822481,0.68192952,105170.0,105160.0,0.001]
[1738279823086,0.68192952,105170.0,105150.0,0.28759428]
[1738279823280,0.06847152,105160.0,105150.0,0.26223428]
[1738279823476,0.06947152,105160.0,105150.0,0.28759428]
[1738279823888,0.06947152,105160.0,105150.0,0.28559428]
[1738279824087,0.06847152,105160.0,105150.0,0.21712276]
[1738279824787,0.06847152,105160.0,105150.0,0.28559428]
[1738279825197,0.06947152,105160.0,105150.0,0.28559428]
[1738279825978,0.06947152,105160.0,105150.0,0.21712276]
[1738279826183,0.001,105160.0,105150.0,0.64639428]
[1738279826485,0.001,105160.0,105150.0,0.31649428]
[1738279826678,0.001,105160.0,105150.0,0.67729428]
[1738279827293,0.06947152,105160.0,105150.0,0.67729428]
[1738279827488,0.25964752,105160.0,105150.0,0.31649428]
[1738279827894,0.25964752,105160.0,105150.0,0.24802276]
[1738279828094,0.29184752,105160.0,105150.0,0.24802276]
[1738279829302,0.2231,105160.0,105150.0,0.31649428]
[1738279829490,0.2231,105160.0,105150.0,0.74433962]
[1738279829995,0.08502865,105180.0,105170.0,0.190158]
[1738279830193,0.08502865,105180.0,105170.0,0.64478952]
[1738279830194,0.27516865,105180.0,105170.0,0.64478952]
[1738279830400,0.34364017,105180.0,105170.0,0.67608952]
[1738279831501,0.27616865,105180.0,105170.0,0.67608952]
[1738279831707,0.27616865,105180.0,105170.0,0.65072952]
[1738279832097,0.27616865,105180.0,105170.0,0.67608952]
[1738279832608,0.19128258,105180.0,105170.0,0.607618]
[1738279833295,0.19128258,105180.0,105170.0,0.609618]
[1738279833800,0.19128258,105180.0,105170.0,0.611618]
[1738279834001,0.00114258,105180.0,105170.0,0.71576811]
[1738279845115,0.00114258,105180.0,105170.0,0.611618]
[1738279848212,0.00114258,105180.0,105170.0,0.586258]
[1738279848407,0.00114258,105180.0,105170.0,0.611618]
[1738279853021,0.19128258,105180.0,105170.0,0.586258]
[1738279853213,0.19128258,105180.0,105170.0,0.611618]
[1738279853417,0.19128258,105180.0,105170.0,0.67996337]
[1738279853715,0.19128258,105180.0,105170.0,0.554958]
[1738279853914,0.29072795,105180.0,105170.0,0.580318]
[1738279856213,0.37561402,105180.0,105170.0,0.580318]
[1738279857021,0.30726865,105180.0,105170.0,0.64866337]
[1738279862426,0.27616865,105180.0,105170.0,0.64866337]
[1738279863320,0.30446401,105180.0,105170.0,0.64866337]
[1738279864525,0.30446401,105180.0,105170.0,0.62330337]
[1738279864823,0.30446401,105180.0,105170.0,0.64866337]
[1738279865722,0.37280938,105180.0,105170.0,0.554958]
[1738279865917,0.33456401,105180.0,105170.0,0.580318]
[1738279866118,0.33456401,105180.0,105170.0,0.219518]
[1738279866829,0.33456401,105180.0,105170.0,0.194158]
[1738279867027,0.33456401,105180.0,105170.0,0.219518]
[1738279867930,0.40290938,105180.0,105170.0,0.219518]
[1738279868930,0.33456401,105180.0,105170.0,0.219518]
[1738279869533,0.40290938,105180.0,105170.0,0.219518]
[1738279871024,0.40290938,105180.0,105170.0,0.5047262]
[1738279871025,0.48827027,105180.0,105170.0,0.5047262]
[1738279874627,0.40290938,105180.0,105170.0,0.219518]
[1738279876826,0.83205475,105180.0,105170.0,0.004]
[1738279880239,0.84163846,105180.0,105170.0,0.004]
[1738279882032,0.87047038,105180.0,105170.0,0.004]
[1738279883432,0.80212501,105180.0,105170.0,0.004]
[1738279883834,0.87047038,105180.0,105170.0,0.004]
[1738279888641,0.80212501,105180.0,105170.0,0.004]
[1738279889534,0.87047038,105180.0,105170.0,0.004]
[1738279891345,0.98409415,105180.0,105170.0,0.004]
[1738279895733,0.86229952,105180.0,105150.0,0.03174258]
[1738279895950,0.68766674,105160.0,105150.0,0.03174258]
[1738279896138,0.68766674,105160.0,105150.0,0.05710258]
[1738279896847,0.68766674,105160.0,105150.0,0.05810258]
[1738279897547,0.68866674,105160.0,105150.0,0.05810258]
[1738279898349,0.68966674,105160.0,105150.0,0.05710258]
[1738279898850,0.88851419,105160.0,105150.0,0.05710258]
[1738279899350,0.88851419,105160.0,105150.0,0.03174258]
[1738279899550,0.88851419,105160.0,105150.0,0.05710258]
[1738279900049,0.88851419,105160.0,105150.0,0.02550258]
[1738279900248,0.91941419,105160.0,105150.0,0.02550258]
[1738279903360,0.92886825,105160.0,105150.0,0.02550258]
[1738279906051,0.84364457,105160.0,105150.0,0.02550258]
[1738279909060,0.84364457,105160.0,105150.0,0.00014258]
[1738279909257,0.84364457,105160.0,105150.0,0.02546258]
[1738279925873,0.87203415,105160.0,105150.0,0.02546258]
[1738279931580,0.87103415,105160.0,105150.0,0.02546258]
[1738279931795,0.87203415,105160.0,105150.0,0.02546258]
[1738279932086,0.87103415,105160.0,105150.0,0.02746258]
[1738279934691,1.04152134,105160.0,105150.0,0.02746258]
[1738279936777,1.04152134,105160.0,105150.0,0.00214258]
[1738279936982,1.04152134,105160.0,105150.0,0.02746258]
[1738279945592,0.87103415,105160.0,105150.0,0.02746258]
[1738279952107,0.94227597,105160.0,105150.0,0.02746258]
[1738279952806,1.01062134,105160.0,105150.0,0.02746258]
[1738279959705,0.94227597,105160.0,105150.0,0.02746258]
[1738279960704,1.01062134,105160.0,105150.0,0.02746258]
[1738279963304,0.84013415,105160.0,105150.0,0.02746258]
[1738279965606,0.87013415,105160.0,105150.0,0.02746258]
[1738279971913,0.87013415,105160.0,105150.0,0.00214258]
[1738279974015,0.93847952,105160.0,105150.0,0.00214258]
[1738279974223,0.19023,105130.0,105120.0,1.00954562]
[1738279974416,0.19023,105130.0,105120.0,0.67406562]
[1738279974417,0.25857537,105130.0,105120.0,0.67406562]
[1738279974923,0.31987537,105130.0,105120.0,0.67406562]
[1738279976414,0.31987537,105130.0,105120.0,0.48382362]
[1738279976616,0.68167537,105130.0,105120.0,0.34150453]
[1738279976923,0.68167537,105130.0,105120.0,0.36682453]
[1738279977424,0.68067537,105130.0,105120.0,0.36682453]
[1738279979223,0.87960931,105130.0,105120.0,0.02532]
[1738279983924,0.76593277,105130.0,105120.0,0.02532]
[1738279985631,0.190248,105120.0,105110.0,0.2508104]
[1738279985834,0.25859337,105120.0,105110.0,0.2761304]
[1738279986731,0.25959337,105120.0,105110.0,0.2761304]
[1738279987730,0.26059337,105120.0,105110.0,0.2761304]
[1738279992026,0.26059337,105120.0,105110.0,0.34447577]
[1738279993325,0.26059337,105120.0,105110.0,0.2761304]
[1738279995933,0.192248,105120.0,105110.0,0.34447577]
[1738279997238,0.26059337,105120.0,105110.0,0.34447577]
[1738279997536,0.26059337,105120.0,105110.0,0.2761304]
[1738279997932,0.26059337,105120.0,105110.0,0.1905104]
[1738279998139,0.62139337,105120.0,105110.0,0.0255714]
[1738279998333,0.68973874,105120.0,105110.0,0.0255714]
[1738279998636,0.72113874,105120.0,105110.0,0.0255714]
[1738280001926,0.72013874,105120.0,105110.0,0.0255714]
[1738280002837,0.71913874,105120.0,105110.0,0.0255714]
[1738280003845,0.97491095,105120.0,105110.0,0.0255714]
[1738280004142,0.98428459,105120.0,105110.0,0.0255714]
[1738280004341,0.98428459,105120.0,105110.0,0.02573064]
[1738280015244,0.84218892,105120.0,105110.0,0.02573064]
[1738280022157,0.98428459,105120.0,105110.0,0.02573064]
[1738280025258,0.84218892,105120.0,105110.0,0.02573064]
[1738280026063,0.77384355,105120.0,105110.0,0.02573064]
[1738280026562,0.84218892,105120.0,105110.0,0.02573064]
[1738280028674,0.77384355,105120.0,105110.0,0.02573064]
[1738280028971,0.11367654,105120.0,105110.0,0.64514201]
[1738280029275,0.11367654,105120.0,105110.0,0.70794201]
[1738280029479,0.11367654,105120.0,105110.0,0.74004201]
[1738280031270,0.11367654,105120.0,105110.0,0.74977677]
[1738280032675,0.51897529,105130.0,105110.0,0.84391159]
[1738280032874,0.51897529,105130.0,105120.0,0.551048]
[1738280034081,0.51997529,105130.0,105120.0,0.551048]
[1738280035171,0.52097529,105130.0,105120.0,0.551048]
[1738280035865,0.51997529,105130.0,105120.0,0.551048]
[1738280036567,0.51997529,105130.0,105120.0,0.190248]
[1738280036768,0.91217529,105130.0,105120.0,0.215528]
[1738280037464,0.79849875,105130.0,105120.0,0.215528]
[1738280037671,0.43769875,105130.0,105120.0,0.215528]
[1738280038678,0.79849875,105130.0,105120.0,0.215528]
[1738280040176,0.43769875,105130.0,105120.0,0.215528]
[1738280041081,0.55137529,105130.0,105120.0,0.215528]
[1738280041677,0.32974329,105130.0,105120.0,0.215528]
[1738280044674,0.26139792,105130.0,105120.0,0.28387337]
[1738280044991,0.20009792,105130.0,105120.0,0.28387337]
[1738280045193,0.08642138,105130.0,105120.0,0.71301874]
[1738280049782,0.001,105130.0,105120.0,1.33892409]
[1738280053481,0.001,105130.0,105120.0,0.99741956]
[1738280068396,0.001,105130.0,105120.0,0.54299419]
[1738280068397,0.25957537,105130.0,105120.0,0.54299419]
[1738280068605,0.29057537,105130.0,105120.0,0.49996882]
[1738280068988,0.29057537,105130.0,105120.0,0.56831419]
[1738280069411,0.65137537,105130.0,105120.0,0.49996882]
[1738280069598,0.22223,105130.0,105120.0,0.56831419]
[1738280071604,0.30765138,105130.0,105120.0,0.51182362]
[1738280075802,0.30765138,105130.0,105120.0,0.48650362]
[1738280076103,0.30765138,105130.0,105120.0,0.51178362]
[1738280082901,0.30765138,105130.0,105120.0,0.51193059]
[1738280088612,0.66845138,105130.0,105120.0,0.51193059]
[1738280092616,0.78212792,105130.0,105120.0,0.51193059]
[1738280095626,0.85047329,105130.0,105120.0,0.44358522]
[1738280097535,0.85047329,105130.0,105120.0,0.41830522]
[1738280097713,0.85047329,105130.0,105120.0,0.22805722]
[1738280097921,0.85047329,105130.0,105120.0,0.25333722]
[1738280098622,0.85047329,105130.0,105120.0,0.22805722]
[1738280101022,0.86181641,105130.0,105120.0,0.00014697]
[1738280101319,0.79347104,105130.0,105120.0,0.00014697]
[1738280102826,0.86181641,105130.0,105120.0,0.00014697]
[1738280103028,0.79347104,105130.0,105120.0,0.00014697]
[1738280105033,0.89020793,105130.0,105120.0,0.00014697]
[1738280105831,0.190248,105120.0,105110.0,0.02542258]
[1738280106033,0.75363874,105120.0,105110.0,0.00014258]
[1738280110038,0.8673316,105120.0,105110.0,0.00014258]
[1738280112038,0.87693138,105120.0,105110.0,0.00014258]
[1738280118935,0.80858601,105120.0,105110.0,0.00014258]
[1738280119643,0.67434064,105120.0,105110.0,0.06848795]
[1738280119845,0.67434064,105120.0,105110.0,0.28403495]
[1738280120138,0.67434064,105120.0,105110.0,0.34643495]
[1738280120543,0.74268601,105120.0,105110.0,0.34643495]
[1738280122243,0.74268601,105120.0,105110.0,0.27808958]
[1738280122445,0.7143362,105120.0,105110.0,0.27808958]
[1738280123147,0.7143362,105120.0,105110.0,0.08782258]
[1738280123942,0.78268157,105120.0,105110.0,0.08782258]
[1738280124640,0.7143362,105120.0,105110.0,0.08782258]
[1738280124843,0.78268157,105120.0,105110.0,0.08782258]
[1738280125045,0.78268157,105120.0,105110.0,0.05542258]
[1738280125247,0.78268157,105120.0,105110.0,0.02542258]
[1738280125447,0.84328157,105120.0,105110.0,0.00014258]
[1738280126050,0.95697443,105120.0,105110.0,0.00014258]
[1738280127049,0.88862906,105120.0,105110.0,0.00014258]
[1738280127244,0.75008391,105120.0,105110.0,0.25875495]
[1738280127551,0.81842928,105120.0,105110.0,0.30542207]
[1738280127751,0.81842928,105120.0,105110.0,0.32275495]
[1738280128154,0.75008391,105120.0,105110.0,0.32275495]
[1738280128358,0.75008391,105120.0,105110.0,0.33762162]
[1738280128559,0.81842928,105120.0,105110.0,0.33762162]
[1738280128858,0.81842928,105120.0,105110.0,0.26927625]
[1738280129558,0.87516741,105120.0,105110.0,0.26927625]
[1738280130456,0.87516741,105120.0,105110.0,0.25440958]
[1738280132165,0.87516741,105120.0,105110.0,0.19040958]
[1738280132363,0.93706741,105120.0,105110.0,0.19040958]
[1738280132551,0.93706741,105120.0,105110.0,0.41831983]
[1738280133255,0.93706741,105120.0,105110.0,0.44359983]
[1738280135964,0.93706741,105120.0,105110.0,0.21568958]
[1738280138761,0.93706741,105120.0,105110.0,0.02542258]
[1738280138959,0.93706741,105120.0,105110.0,0.00014258]
[1738280139361,0.93706741,105120.0,105110.0,0.02542258]
[1738280139561,0.93706741,105120.0,105110.0,0.00014258]
[1738280139770,0.93706741,105120.0,105110.0,0.02542258]
[1738280141060,1.00541278,105120.0,105110.0,0.02542258]
[1738280141257,0.93706741,105120.0,105110.0,0.02542258]
[1738280142560,0.82337455,105120.0,105110.0,0.02542258]
[1738280148371,0.82337455,105120.0,105110.0,0.00014258]
[1738280148669,0.82337455,105120.0,105110.0,0.02542258]
[1738280149763,0.82337455,105120.0,105110.0,0.00014258]
[1738280149968,0.82337455,105120.0,105110.0,0.02542258]
[1738280156370,0.82337455,105120.0,105110.0,0.00014258]
[1738280156569,0.82337455,105120.0,105110.0,0.02542258]
[1738280160367,0.99386174,105120.0,105110.0,0.21568958]
[1738280162578,0.99386174,105120.0,105110.0,0.02542258]
[1738280163375,0.99386174,105120.0,105110.0,0.00014258]
[1738280163582,0.99386174,105120.0,105110.0,0.02542258]
[1738280164781,0.99386174,105120.0,105110.0,0.00014258]
[1738280164981,0.99386174,105120.0,105110.0,0.02542258]
[1738280175780,0.92551637,105120.0,105110.0,0.02542258]
[1738280175985,0.92551637,105120.0,105110.0,0.00014258]
[1738280176193,0.92551637,105120.0,105110.0,0.02542258]
[1738280176689,0.99386174,105120.0,105110.0,0.02542258]
[1738280179496,0.92551637,105120.0,105110.0,0.02542258]
[1738280179789,0.99386174,105120.0,105110.0,0.02542258]
[1738280180192,0.92551637,105120.0,105110.0,0.02542258]
[1738280180691,0.75502918,105120.0,105110.0,0.02542258]
[1738280182797,0.75502918,105120.0,105110.0,0.04028986]
[1738280183495,0.75502918,105120.0,105110.0,0.02542258]
[1738280184395,0.75502918,105120.0,105110.0,0.04028986]
[1738280184692,0.75502918,105120.0,105110.0,0.26820011]
[1738280184993,0.82337455,105120.0,105110.0,0.25333283]
[1738280185897,0.82337455,105120.0,105110.0,0.26820011]
[1738280186901,0.82337455,105120.0,105110.0,0.25333283]
[1738280189289,0.75502918,105120.0,105110.0,0.45846683]
[1738280189792,0.39422918,105120.0,105110.0,0.52681139]
[1738280190192,0.33232918,105120.0,105110.0,0.52681139]
[1738280190996,0.33232918,105120.0,105110.0,0.5119452]
[1738280191299,0.44639636,105120.0,105110.0,0.5119452]
[1738280193293,0.44639636,105120.0,105110.0,0.5442452]
[1738280193894,0.44639636,105120.0,105110.0,0.55911095]
[1738280195400,0.38981752,105120.0,105110.0,0.5442452]
[1738280195705,0.38981752,105120.0,105110.0,0.55911094]
[1738280195903,0.38981752,105120.0,105110.0,0.55911095]
[1738280196202,0.38981752,105120.0,105110.0,0.55911094]
[1738280196403,0.45816289,105120.0,105110.0,0.55911094]
[1738280196599,0.45816289,105120.0,105110.0,0.45846557]
[1738280197002,0.45816289,105120.0,105110.0,0.44359983]
[1738280199005,0.34409571,105120.0,105110.0,0.44359983]
[1738280199905,0.70489571,105120.0,105110.0,0.44359983]
[1738280200498,0.63655034,105120.0,105110.0,0.44359983]
[1738280202797,0.63655034,105120.0,105110.0,0.5119452]
[1738280204003,0.08550234,105120.0,105110.0,0.8727452]
[1738280204205,0.08550234,105120.0,105110.0,0.9359452]
[1738280208207,0.33993434,105130.0,105110.0,1.1436733]
[1738280208510,0.33993434,105130.0,105120.0,0.25859437]
[1738280208811,0.70073434,105130.0,105120.0,0.25859437]
[1738280209302,0.70073434,105130.0,105120.0,0.23859437]
[1738280209810,0.70173434,105130.0,105120.0,0.23859437]
[1738280210511,0.70073434,105130.0,105120.0,0.23859437]
[1738280211111,0.70073434,105130.0,105120.0,0.30693974]
[1738280211309,0.70073434,105130.0,105120.0,0.25859437]
[1738280211615,0.70173434,105130.0,105120.0,0.25859437]
[1738280212021,0.70173434,105130.0,105120.0,0.32693974]
[1738280212022,0.70073434,105130.0,105120.0,0.32693974]
[1738280212217,0.70173434,105130.0,105120.0,0.32693974]
[1738280212516,0.70173434,105130.0,105120.0,0.48648256]
[1738280213716,0.34093434,105130.0,105120.0,0.48648256]
[1738280214313,0.34093434,105130.0,105120.0,0.46648256]
[1738280215110,0.34093434,105130.0,105120.0,0.53482793]
[1738280215409,0.34093434,105130.0,105120.0,0.46648256]
[1738280216114,0.34093434,105130.0,105120.0,0.53482793]
[1738280217315,0.34093434,105130.0,105120.0,0.56582793]
[1738280217514,0.11810234,105130.0,105120.0,0.56582793]
[1738280218318,0.11810234,105130.0,105120.0,0.5751447]
[1738280219223,0.11810234,105130.0,105120.0,0.5551447]
[1738280220509,0.11810234,105130.0,105120.0,0.9159447]
[1738280221614,0.30833234,105130.0,105120.0,0.9159447]
[1738280221816,0.30833234,105130.0,105120.0,0.84759933]
[1738280222619,0.30833234,105130.0,105120.0,0.9159447]
[1738280225124,0.22283,105130.0,105120.0,0.9159447]
[1738280226516,0.0326,105130.0,105120.0,0.9159447]
[1738280228321,0.0326,105130.0,105120.0,1.20034552]
[1738280230428,0.22283,105130.0,105120.0,1.20034552]
[1738280231929,0.30833234,105130.0,105120.0,0.9159447]
[1738280235225,0.30833234,105130.0,105120.0,0.84187933]
[1738280235428,0.33863234,105130.0,105120.0,0.89839196]
[1738280235724,0.33863234,105130.0,105120.0,0.87311196]
[1738280236034,0.33863234,105130.0,105120.0,0.89839196]
[1738280236826,0.33863234,105130.0,105120.0,0.96673733]
[1738280239528,0.33863234,105130.0,105120.0,0.89839196]
[1738280240228,0.33863234,105130.0,105120.0,0.61399114]
[1738280242936,0.33863234,105130.0,105120.0,0.89839196]
[1738280245643,0.33863234,105130.0,105120.0,0.96673733]
[1738280245829,0.33863234,105130.0,105120.0,0.89839196]
[1738280269971,0.33863234,105130.0,105120.0,0.83000659]
[1738280270275,0.33863234,105130.0,105120.0,0.89835196]
[1738280273080,0.40697771,105130.0,105120.0,0.28440082]
[1738280273379,0.76777771,105130.0,105120.0,0.28440082]
[1738280273570,1.13612308,105130.0,105120.0,0.13470082]
[1738280273770,0.190249,105120.0,105110.0,0.34164711]
[1738280273967,0.68773974,105120.0,105110.0,0.34164711]
[1738280274982,1.05608511,105120.0,105110.0,0.17312192]
[1738280275274,0.190267,105110.0,105100.0,0.05944042]
[1738280275579,0.68775774,105110.0,105100.0,0.05944042]
[1738280276468,0.75710311,105110.0,105100.0,0.05944042]
[1738280276665,1.01399774,105110.0,105100.0,0.05944042]
[1738280277981,1.01409774,105110.0,105100.0,0.05944042]
[1738280278974,0.190285,105100.0,105090.0,0.57146692]
[1738280279174,0.61953037,105100.0,105090.0,0.57146692]
[1738280279367,1.05622111,105100.0,105090.0,0.57146692]
[1738280279571,1.05622111,105100.0,105060.0,0.190354]
[1738280279572,0.86593611,105100.0,105060.0,0.190354]
[1738280279769,0.86593611,105100.0,105060.0,0.215594]
[1738280279770,0.25868437,105070.0,105060.0,0.215594]
[1738280280071,0.61948437,105070.0,105060.0,0.215594]
[1738280281772,0.62048437,105070.0,105060.0,0.215594]
[1738280282471,0.62148437,105070.0,105060.0,0.215594]
[1738280282679,0.62148437,105070.0,105060.0,0.28393937]
[1738280284287,0.62148437,105070.0,105060.0,0.215594]
[1738280285587,0.84358437,105070.0,105060.0,0.215594]
[1738280290591,0.775239,105070.0,105060.0,0.28393937]
[1738280291095,0.84358437,105070.0,105060.0,0.28393937]